Cogmind - Beta 16 @@@ ROGUE MODE // 2025.11.01 @ 12:51:51 Player: Anting Result: Destroyed by Triborg with Siege Cannon Performance ------------- Evolutions (0) 0 Regions Visited (3) 600 Robots Destroyed (12) 60 Value Destroyed (378) 378 Prototype IDs (12) 240 Alien Tech Used (0) 0 Bonus (188) 188 TOTAL SCORE: 1466 Bonus ------- Registered with UFD 300 Friendly Fire -112 Cogmind --------- Core Integrity 0/250 Matter 300/300 Energy 98/100 System Corruption 0% Temperature Cool (1) Movement Treading (160) Location -8/Scraptown Parts ------- > --- POWER (1) -------- (None) > --- PROPULSION (2) --- Light Treads > --- UTILITY (2) ------ Large Storage Unit > --- WEAPON (2) ------- (None) > --- INVENTORY (15) --- DRS Beacon (Ready) Peak State ------------ > --- POWER ------------ Subdweller Power Source > --- PROPULSION ------- Light Treads Light Treads > --- UTILITY ---------- Large Storage Unit Seismic Detector > --- WEAPON ----------- Beam Cannon Subdweller Beam Cannon > --- INVENTORY -------- Subdweller Power Source Subdweller Power Source Subdweller Power Source Makeshift Power Source Subdweller Monowheel Subdweller Optics Scrap Shield Tower Shield Power Bank Subdweller Laser Subdweller Machine Gun Subdweller Machine Gun Subdweller Shrapnel Launcher [Rating: 14] Favorites ----------- Power Subdweller Power Source Engine Subdweller Power Source Propulsion Light Treads Treads Light Treads Leg Aluminum Leg Utility Large Storage Unit Device Seismic Detector Storage Large Storage Unit Weapon Subdweller Beam Cannon Energy Cannon Subdweller Beam Cannon Ballistic Gun Assault Rifle Build | -11 -10 -10 -8 ------- Run | Yrd Mat Sub Scr Slots Evolved . | . . . . Power . | . . . . Propulsion . | . . . . Utility . | . . . . Weapon . | . . . . Parts Attached 18 | 7 2 8 1 Power 4 | 1 . 3 . Engine 4 | 1 . 3 . Core . | . . . . Reactor . | . . . . Propulsion 5 | 2 . 3 . Treads 2 | . . 2 . Leg 3 | 2 . 1 . Wheel . | . . . . Hover . | . . . . Flight . | . . . . Utility 5 | 2 2 . 1 Device 2 | 1 . . 1 Storage 3 | 1 2 . . Processor . | . . . . Hackware . | . . . . Protection . | . . . . Artifact . | . . . . Weapon 4 | 2 . 2 . Energy Gun . | . . . . Energy Cannon 2 | . . 2 . Ballistic Gun 2 | 2 . . . Ballistic Cannon . | . . . . Launcher . | . . . . Special Weapon . | . . . . Impact Weapon . | . . . . Slashing Weapon . | . . . . Piercing Weapon . | . . . . Special Melee Weapon . | . . . . Unidentified Prototypes . | . . . . Parts Lost 2 | . . 1 1 Power . | . . . . Propulsion 1 | . . . 1 Utility . | . . . . Weapon 1 | . . 1 . Highest Loss Streak 1 | . . 1 1 To Critical Strikes . | . . . . Average Backups 9 | 3 6 14 6 Power 2 | . 1 2 1 Propulsion . | 1 2 1 . Utility 2 | . 1 3 2 Weapon 3 | . 1 6 1 Tool/Special . | . . . . Unused Backups 31 | . . 10 21 Power 5 | . . 1 4 Propulsion 6 | . . . 6 Utility 6 | . . 2 4 Weapon 13 | . . 7 6 Tool/Special 1 | . . . 1 Average Slot Usage (%) 86 | . 100 99 76 Engine 8 | . 14 14 4 Treads 19 | . . 8 27 Leg 8 | . 28 19 . Device 12 | . 14 14 11 Storage 13 | . 14 14 13 Energy Cannon 18 | . . 21 17 Ballistic Gun 2 | . 28 6 . Peak Build Rating 14 | 7 8 14 14 Average Rating 10 | 5 7 11 10 On Entrance 7 | . 7 8 14 Avg Prop Armor Cover (%) 32 | . . . 32 Naked Turns . | . . . . Heaviest Build 37 | 12 27 37 37 Greatest Support 40 | 20 20 40 40 Greatest Overweight (x) 7 | . 1 1 7 Average Overweight (x) . | . . . . Largest Inventory Capacity 15 | 8 15 15 15 Average Capacity 14 | 6 8 14 14 Most Carried 15 | 5 10 15 15 Average Carried 9 | 3 6 14 6 Final Capacity 15 | 8 10 15 15 Final Carried 15 | 5 10 15 1 Class Distribution -------------------- 100% | Mutant Dominant Class ---------------- Mutant | -10/Materials Mutant | -10/Subcaves Mutant | -8/Scraptown Resources | -11 -10 -10 -8 ----------- Run | Yrd Mat Sub Scr Matter Collected 495 | 254 36 175 30 Remotely . | . . . . Salvage Created 541 | 81 . 423 37 Parts 43 | 8 . 34 1 Haulers Intercepted . | . . . . Recyclers Shooed 1 | 1 . . . Parts Field Recycled . | . . . . Retrieved Matter . | . . . . Parts Self-Destructed 19 | . . 19 . Prevented . | . . . . Parts Restored . | . . . . Kills | -11 -10 -10 -8 ------- Run | Yrd Mat Sub Scr Combat Hostiles Destroyed 9 | . . 9 . Guns 4 | . . 4 . Cannons 5 | . . 5 . Classes Destroyed 5 | 2 . 2 1 Tunneler 1 | 1 . . . Recycler 1 | 1 . . . Sentry 1 | . . 1 . Subdweller 8 | . . 8 . Ranger 1 | . . . 1 Best Kill Streak 2 | 1 . 2 . Combat Bots Only 2 | . . 2 . Max Kills in Single Turn 1 | 1 . 1 1 Gunslinging . | . . . . Exploded . | . . . . Melee . | . . . . Uniques/NPCs Destroyed . | . . . . Combat | -11 -10 -10 -8 -------- Run | Yrd Mat Sub Scr Hostile Shots Fired 50 | . . 38 12 Missed 14 | . . 12 2 Hits 36 | . . 26 10 Projectile 36 | . . 26 10 Critical Strikes 1 | . . 1 . Damage Taken 1022 | . . 534 488 Core 300 | . . 96 204 Absorbed by Shields . | . . . . Core Remaining (%) 100 | 100 . . . Volleys Fired 46 | 3 2 41 . Largest 2 | 2 2 2 . Hottest 140 | 40 40 140 . Shots Fired 82 | 6 4 72 . Gun 38 | 6 4 28 . Cannon 44 | . . 44 . Launcher . | . . . . Special . | . . . . Kinetic 38 | 6 4 28 . Thermal 44 | . . 44 . Explosive . | . . . . Electromagnetic . | . . . . Robot Hit Streak 30 | 5 8 30 . Robot Miss Streak 1 | . 1 1 . Penetration Max . | . . . . Secondary Targets 1 | . . 1 . Max Gunslinging Chain 1 | . . 1 . Shots Hit Robots 65 | 5 3 57 . Core Hits 24 | 4 1 19 . Critical Kills . | . . . . Critical Parts Destroyed . | . . . . Critical Strikes . | . . . . Melee Attacks . | . . . . Impact . | . . . . Slashing . | . . . . Piercing . | . . . . Sneak Attacks . | . . . . Combat Hostiles . | . . . . Follow-up Attacks . | . . . . Damage Inflicted 1050 | 51 28 959 12 Guns 363 | 51 27 285 . Cannons 674 | . . 674 . Explosions . | . . . . Melee . | . . . . Ramming 13 | . 1 . 12 Kinetic 363 | 51 27 285 . Thermal 674 | . . 674 . Explosive . | . . . . Electromagnetic . | . . . . Impact . | . . . . Slashing . | . . . . Piercing . | . . . . Highest Corruption . | . . . . Average Corruption . | . . . . Corruption Purged . | . . . . Corruption Blocked . | . . . . Overload Shots . | . . . . Overflow Damage . | . . . . Projectiles . | . . . . Explosions . | . . . . Melee . | . . . . Knockbacks . | . . . . Impact . | . . . . Kinetic . | . . . . Secondary . | . . . . Self-Inflicted Damage . | . . . . Shots . | . . . . Rammed . | . . . . Targets Rammed 2 | . 1 . 1 Kicked 1 | . 1 . . Crushed 1 | . . . 1 Highest Temperature 48 | . . 48 . Average Temperature 15 | . . 15 . Received Heat Transfer 129 | . . 129 . Siege Activations . | . . . . Martial Activations . | . . . . Shielding Activations . | . . . . Robots Disrupted . | . . . . Combat Hostiles . | . . . . Robots Corrupted . | . . . . Combat Hostiles . | . . . . Parts Fried . | . . . . Impact Corruptions . | . . . . Robots Melted . | . . . . Combat Hostiles . | . . . . Parts Melted 3 | . . 3 . Heat Transferred 1147 | . . 1147 . Parts Sabotaged . | . . . . Parts Stolen . | . . . . Parts Stripped . | . . . . Power Chain Reactions . | . . . . Alert | -11 -10 -10 -8 ------- Run | Yrd Mat Sub Scr Maximum Alert Level . | . . . . Low Security (%) 100 | 100 100 . . Level 1 . | . . . . Level 2 . | . . . . Level 3 . | . . . . Level 4 . | . . . . Level 5 . | . . . . High Security . | . . . . Max Security . | . . . . Peak Influence 30 | 5 30 . . Initial 3 | . 3 . . Average 3 | . 5 . . Influence Increases 60 | 10 30 20 . Destroy 0b10 Robot/C 20 | . . 20 . Destroy 0b10 Robot/NC 10 | 10 . . . Select Force Hacks 30 | . 30 . . Influence Decreases 60 | 5 35 20 . Entered New Map 2 | . 2 . . Time Decay 58 | 5 33 20 . Squads Dispatched 1 | . 1 . . Investigation 1 | . 1 . . Extermination . | . . . . Reinforcement . | . . . . Assault . | . . . . Garrison . | . . . . Intercept . | . . . . Searches Triggered . | . . . . Construction Impeded . | . . . . Haulers Reinforced . | . . . . Active Scanning Responses . | . . . . Cargo Convoy Interrupts . | . . . . Stealth | -11 -10 -10 -8 --------- Run | Yrd Mat Sub Scr Distress Signals . | . . . . Communications Jammed . | . . . . Distress Signals . | . . . . Times Spotted 14 | . 1 9 4 Peak Tracking Total 11 | . 1 3 11 Tactical Retreats . | . . . . Traps | -11 -10 -10 -8 ------- Run | Yrd Mat Sub Scr Traps Triggered . | . . . . Indirectly . | . . . . Trap Hack Attempts . | . . . . Triggered . | . . . . Disarmed . | . . . . Reprogrammed . | . . . . Reused . | . . . . Traps Extracted . | . . . . Installed . | . . . . Triggered . | . . . . Machines | -11 -10 -10 -8 ---------- Run | Yrd Mat Sub Scr Machines Disabled 1 | . . 1 . Max in Single Turn 1 | . . 1 . Machines Repaired . | . . . . Machines Dismantled . | . . . . Machines Sabotaged . | . . . . Overloaded Fab Kills . | . . . . Hacking | -11 -10 -10 -8 --------- Run | Yrd Mat Sub Scr Machines Accessed 9 | . 1 3 5 Terminals . | . . . . Fabricators . | . . . . Repair Stations . | . . . . Recycling Units 1 | . 1 . . Scanalyzers . | . . . . Garrison Access . | . . . . Total Hacks 35 | . 1 7 27 Successful 35 | . 1 7 27 Failed . | . . . . Catastrophic . | . . . . Database Lockouts . | . . . . Manual 1 | . 1 . . Terminals . | . . . . Fabricators . | . . . . Repair Stations . | . . . . Recycling Units 1 | . 1 . . Scanalyzers . | . . . . Garrison Access . | . . . . Terminal Hacks 34 | . . 7 27 Record 27 | . . 5 22 Robot Analysis 5 | . . . 5 Open Door 1 | . . 1 . Proto ID Catalog 1 | . . 1 . Fabricator Hacks . | . . . . Repair Station Hacks . | . . . . Recycling Unit Hacks . | . . . . Scanalyzer . | . . . . Garrison Access Hacks . | . . . . Unauthorized Hacks 1 | . 1 . . Terminals . | . . . . Fabricators . | . . . . Repair Stations . | . . . . Recycling Units 1 | . 1 . . Tunnel 1 | . 1 . . Scanalyzers . | . . . . Garrison Access . | . . . . Data Cores Recovered . | . . . . Used . | . . . . Hacking Detections . | . . . . Full Trace Events . | . . . . Feedback Events . | . . . . Feedback Blocked . | . . . . Robot Schematics Acquired . | . . . . Robots Built . | . . . . Authchips . | . . . . Time . | . . . . Total Robot Build Rating . | . . . . Part Schematics Acquired . | . . . . Parts Built . | . . . . Authchips . | . . . . Time . | . . . . Total Part Build Rating . | . . . . Part Studies Acquired . | . . . . Parts Repaired . | . . . . Time . | . . . . Parts Recycled . | . . . . Recycled Matter . | . . . . Retrieved Matter . | . . . . Retrieved Components . | . . . . Parts Scanalyzed . | . . . . Part Schematics Acquired . | . . . . Parts Damaged . | . . . . Bothacking | -11 -10 -10 -8 ------------ Run | Yrd Mat Sub Scr Used RIF Installer . | . . . . Robots Hacked . | . . . . Non-combat . | . . . . Combat . | . . . . Robot Hacks Applied . | . . . . Relay Couplers Released . | . . . . Fabnet Peak Effective % . | . . . . Robots Rewired . | . . . . Allies Hacked . | . . . . Hacks Repelled . | . . . . Allies | -11 -10 -10 -8 -------- Run | Yrd Mat Sub Scr Total Allies . | . . . . Largest Group . | . . . . Highest-Rated Group . | . . . . Highest-Rated Ally . | . . . . Total Orders 4 | . . . 4 STAY 1 | . . . 1 FOLLOW 1 | . . . 1 EXPLORE 1 | . . . 1 RETURN 1 | . . . 1 Ally Attacks . | . . . . Total Damage . | . . . . Kills . | . . . . Allies Corrupted . | . . . . Allies Melted . | . . . . Intel | -11 -10 -10 -8 ------- Run | Yrd Mat Sub Scr Active Infowar (turns) 5096 | 28 149 3272 1647 Seismic 5096 | 28 149 3272 1647 Robot Analysis Total 5 | . . . 5 Derelict Logs Recovered 6 | . . 1 5 Drone Launches 3 | . . . 3 Drone Recoveries 3 | . . . 3 Exploration | -11 -10 -10 -8 ------------- Run | Yrd Mat Sub Scr Turns Passed 8349 | 92 149 3272 4836 Spaces Moved 4647 | 60 110 1676 2801 Core 148 | 8 . . 140 Treads 3255 | . . 594 2661 Legs 1244 | 52 110 1082 . Wheels . | . . . . Hover . | . . . . Flight . | . . . . Fastest Speed 50 | 50 120 120 50 Average Speed 161 | 110 120 178 154 Slowest Speed 400 | 120 190 190 400 Overloaded Moves . | . . . . Propulsion Burnouts . | . . . . Robots Hopped . | . . . . Potential Cave-ins . | . . . . Cave-ins Triggered . | . . . . Exploration Rate (%) 46 | 4 27 64 92 Regions Visited 3 Branch Regions 2 Pre-discovered Areas 9 | . 1 1 7 Known Exits Taken . | . . . . Unknown Exits Taken 3 | 1 1 1 . Scrap Searched 14 | . . 8 6 Spaces Dug . | . . . . Terrain Destroyed . | . . . . Melee . | . . . . Projectile . | . . . . AOE . | . . . . Terrain Rammed . | . . . . Walls Destroyed . | . . . . Machines Disabled . | . . . . Actions | -11 -10 -10 -8 --------- Run | Yrd Mat Sub Scr Total 5421 | 76 121 1903 3321 Wait 607 | 2 . 136 469 Move 4644 | 59 109 1675 2801 Hop . | . . . . Pick Up 46 | 5 5 21 15 Fast Attach 11 | 7 . 2 2 Attach 4 | . . 3 1 Detach . | . . . . Swap 7 | . 3 4 . Drop 54 | . 1 21 32 Fire 46 | 3 2 41 . Melee . | . . . . Ram . | . . . . Kick 1 | . 1 . . Crush 1 | . . . 1 Escape Stasis . | . . . . Rewire . | . . . . Trap . | . . . . Miscellaneous . | . . . . Route ------- -11/Scrapyard -10/Materials (discovered 2 exits: [*Mat] / *Sub) -10/Subcaves (discovered 4 exits: [*Mat x2] / [*Rec] / *Scr) -8/Scraptown (discovered 2 exits: [*Fac x2]) History --------- Turn | Location | Event 8 | -11/Scrapyard | Discovered new exit (range 14) 93 | -11/Scrapyard | Entered Materials 94 | -10/Materials | Met a group of wandering Federalists 232 | -10/Materials | Discovered new exit (range 15) 238 | -10/Materials | Discovered new exit (range 5) 242 | -10/Materials | Entered Subcaves 243 | -10/Subcaves | Continued accompanying wandering Federalists (6) 304 | -10/Subcaves | Build established: Mutant 359 | -10/Subcaves | Lost 4 allies 493 | -10/Subcaves | Wandering Federalist uncovered a shortcut to Scraptown 535 | -10/Subcaves | Discovered new exit (range 15) 573 | -10/Subcaves | Learned Materials terminal intel 578 | -10/Subcaves | Learned location of Zion (-6) 578 | -10/Subcaves | Met a Zionite searching for "candidates" 1220 | -10/Subcaves | A Subdweller sparked back to life 1220 | -10/Subcaves | A Subdweller sparked back to life 1220 | -10/Subcaves | A Subdweller sparked back to life 1270 | -10/Subcaves | Found Prototype Device 1324 | -10/Subcaves | Discovered new exit (range 16) 1423 | -10/Subcaves | Discovered new exit (range 15) 1693 | -10/Subcaves | Visited Clippyterm 1698 | -10/Subcaves | Learned Research machine intel 1698 | -10/Subcaves | Learned Factory trap positions 3250 | -10/Subcaves | Visited 4L-MR0's lab 3255 | -10/Subcaves | Identified Power Bank 3265 | -10/Subcaves | Found Tower Shield 3514 | -10/Subcaves | Entered Scraptown 3690 | -8/Scraptown | Scanned Subdweller tech in exchange for log data 3694 | -8/Scraptown | Learned Research stockpile data 3695 | -8/Scraptown | Learned Factory machine intel 3698 | -8/Scraptown | Learned location of Quarantine (-3) 3700 | -8/Scraptown | Learned Research trap positions 3702 | -8/Scraptown | Learned location of 1 exit from Factory 3721 | -8/Scraptown | Discovered new exit (range 13) 4121 | -8/Scraptown | Visited Fellowship of the Rings 4143 | -8/Scraptown | Visited The Evicted 4202 | -8/Scraptown | Visited Cyclists 4225 | -8/Scraptown | Visited Spacefarers 4311 | -8/Scraptown | Visited Bundlers 4398 | -8/Scraptown | Visited Shadow of the Wyrm 4434 | -8/Scraptown | Visited Scrapoid Research Area 4473 | -8/Scraptown | Visited UFD Registry 4473 | -8/Scraptown | Registered with UFD as "Pulsekit" 4524 | -8/Scraptown | Visited Botcube Research 4553 | -8/Scraptown | Visited Curators Association 4585 | -8/Scraptown | Visited Observation Area 4655 | -8/Scraptown | Delivered Scrap Shield to a Scientist 4751 | -8/Scraptown | Visited Derelict Rescue Squad 4778 | -8/Scraptown | Visited Research Penetration Think Tank 4814 | -8/Scraptown | Visited Analyses Database 4849 | -8/Scraptown | Visited Cartography Club 4878 | -8/Scraptown | Visited Chapter 10 4916 | -8/Scraptown | Visited Scrapoid Pod Storage 4951 | -8/Scraptown | Visited Modified Component R&D 5169 | -8/Scraptown | Discovered new exit (range 17) 5211 | -8/Scraptown | Learned location of 2 exits from Upper Caves 5211 | -8/Scraptown | Learned location of 1 exit from Factory 5211 | -8/Scraptown | Learned 4 Armory zone layouts 5211 | -8/Scraptown | Learned 24 Proximity Caves zone layouts 5211 | -8/Scraptown | Learned 4 Recycling zone layouts 5211 | -8/Scraptown | Learned 12 Proximity Caves zone layouts 5211 | -8/Scraptown | Learned 24 Factory zone layouts 5211 | -8/Scraptown | Learned 16 Factory zone layouts 5211 | -8/Scraptown | Learned location of Armory (-3) 5211 | -8/Scraptown | Learned location of Warlord (-5) 5211 | -8/Scraptown | Learned location of Lower Caves (-7) 5227 | -8/Scraptown | Found Deep Structural Scanner 6151 | -8/Scraptown | Entered Cyclist Reading Room 7527 | -8/Scraptown | Found Scrapoid Pod 7635 | -8/Scraptown | Found DRS Beacon 7723 | -8/Scraptown | Found Lrg. Botcube 8240 | -8/Scraptown | Attacked by Scraptown defenders 8349 | -8/Scraptown | Core integrity fell below 50% 8349 | -8/Scraptown | Core integrity fell below 20% 8350 | -8/Scraptown | Destroyed by Triborg with Siege Cannon Last Messages --------------- 07893_ Dropped Ovr. Medium Treads. 07893_ Dropped Sub. Beam Cannon. 07915_ 9A-VJ8(p) scrutinizes some mainframe outputs. 07952_ 9A-VJ8(p) closely examines the mainframe. 08239_ Crushed KK-P47(h). 08239_ KK-P47(h) destroyed. 08240_ ANNOUNCEMENT: Intruder alert! Defend Scraptown! 08343_ ANNOUNCEMENT: Triborg tracking relay activated. Stay clear or you only have yourself to blame! 08344_ Penetrated by Siege Slug. 08345_ Lgt. Treads destroyed. 08346_ Penetrated by Siege Slug. 08346_ Siege Slug penetrates Wall. 08348_ Slug penetrates Wall. 08348_ Penetrated by Siege Slug. 08348_ Siege Slug penetrates Wall. 08350_ Penetrated by Siege Slug. Map ----- +----------------------------------------------------+ | # " " ## #####"""" ""# | | # ## " " ## ###"#"""" ""# "" | | # """ ## " ## ""#"#"""" ""# "" | | # """ ## " " ## """"#"""" ""# " | | # """ # " " ## ""#######" "" " | | # """ # "" ## #########" "" " | | # """ # " " ## #########" ""# " | | # " "" ## ""# "" | | # " " # " " ## ""# "" | | # """""### ## ""# | | ################# ""# | | ################# TT ""###### | | ETT """"""""" | | """"""""" | | p | | M | | | | #""""#" | | #""""#" | | #""""#"""""" """""""" | | #### ####### ########## ####""""####### ######## | | ""## #### ;###""""## "##" | | " " "## #### ####""""##""" "###" | | " ""## #### ####""""##"" " ###= | | " "## #### ####""""##""" ""###" | | " "## ####% @####""""##"""" ""##" | | " "## #### ####""""########"######" | | """ ""## #### ####""""###""""" ""####$ | | " "" ""## #### %####""""###" "####" | | """ """"## #### ####""""###" "###" | | """"""""############### % ;##########""""""""##### | | ####################### ;###################### | | ##?###?################ ;####################### | | #####?######""""""""""" ;####################### | | ############""""" """"" ;##### ##"""##"" | | ##?#####?###"""" " "" ###### """"""" ## ""##|" | | ###?## ###### """"""" | | ###?## #####"" "" "" " ###### """"""" | | "#?""" "####""""""""""" ###### """"""" | | "##""" "####""""""""""" ###### """"""" ##"""##"" | | "?#""" "############### ##?### ##"""##"" | | "##"" "#?############# ######################## | | "##"" "###"""""""""""# ###################??### | | "##"| "###""!= ]![! "# ######################## | | "##"| "###"" [[]!=[ "# ######################## | | "##"" "###"" "# ######################## | | "##"" ""###""" """""""# #################?###### | | ####################?### | | ################?####### | | ######""" """##""" """#################??######?## | +----------------------------------------------------+ Best States ------------- Heat Dissipation 25 Energy Generation 15 Energy Capacity 200 Matter Stores 300 Matter Capacity 300 Sight Range 16 Terrain Scan Density 10 Evasion (%) 55 Recoil Reduction 2 Item Schematics ----------------- None Robot Schematics ------------------ None Fabricated ------------ Nothing Repaired ---------- Nothing Studied --------- None Alien Tech Used ----------------- None Achievements -------------- Strength In Numbers Challenges ------------ None Game ------ Seed ResetAlphaHammerchucker Manual? 0 Play Time 00:27:49 Cumulative 343.2 hours Start 2025.11.01 @ 12:15:10 End 2025.11.01 @ 12:51:51 Sessions 1 Manual Loads 0 Difficulty Rogue Special Mode None Game No. 240 Rogue 240 Adventurer 0 Explorer 0 Win Type - Total 22 Types 9/0/7/1/1/0/1/1/1/1 Lore% 82 Gallery% 78 Achievement% 62 Wizard Run 0 Options --------- Layout 1 ASCII 0 Keyboard 0 Movement Arrows Keybinds 0 Fullscreen 2 Font 24/Smallcaps Map View 50x35 Zoom Use 0% Tactical HUD 1 Map Filters NONE Filters NONE Steam 1 RUN: 255c5037-9d7a-496c-8dba-0a15c1fc972c